bitfinex-derivatives/quotes_SOLF0:USTF0_20260227
["timestamp","ask_amount","ask_price","bid_price","bid_amount"]
[1772219762910,3.96231076,81.398,81.351,3.85299776]
[1772219763115,7.47672304,81.41,81.351,3.85299776]
[1772219763510,7.47672304,81.41,81.375,3.85299776]
[1772219763715,3.51441228,81.42,81.375,3.85299776]
[1772219764216,7.47672304,81.43,81.375,3.85299776]
[1772219764411,3.96231076,81.429,81.375,3.85299776]
[1772219765114,3.96231076,81.428,81.389,11.0587]
[1772219766915,39.07796314,81.439,81.398,3.85299776]
[1772219767216,39.07796314,81.439,81.359,22.1257]
[1772219767217,3.96231076,81.429,81.381,3.85299776]
[1772219767921,3.96231076,81.429,81.393,11.0582]
[1772219771416,3.94098951,81.419,81.37,3.51441228]
[1772219771616,3.51441228,81.4,81.369,3.78093748]
[1772219772625,3.51441228,81.4,81.371,11.0612]
[1772219778423,3.51441228,81.42,81.369,3.78093748]
[1772219778624,3.51441228,81.42,81.371,3.78093748]
[1772219778930,3.51441228,81.42,81.386,3.78093748]
[1772219779322,3.51441228,81.43,81.386,3.78093748]
[1772219780931,3.51441228,81.43,81.397,11.0576]
[1772219781323,3.51441228,81.43,81.386,3.78093748]
[1772219781523,3.23845398,81.43,81.386,3.78093748]
[1772219781726,3.51441228,81.42,81.386,3.78093748]
[1772219783021,3.51441228,81.42,81.39,11.0585]
[1772219784232,3.51441228,81.41,81.384,11.0594]
[1772219786136,3.51441228,81.41,81.384,14.84033748]
[1772219789126,3.51441228,81.41,81.385,3.78093748]
[1772219790040,3.51441228,81.42,81.385,3.78093748]
[1772219791133,3.51441228,81.41,81.385,3.78093748]
[1772219798538,11.0548,81.418,81.385,3.78093748]
[1772219798731,7.45540179,81.42,81.387,3.78093748]
[1772219798931,3.51441228,81.43,81.387,3.78093748]
[1772219799132,11.0522,81.438,81.404,3.64843911]
[1772219800142,3.51441228,81.44,81.406,3.81374001]
[1772219800543,3.51441228,81.46,81.427,3.81374001]
[1772219802640,3.51441228,81.46,81.417,11.0548]
[1772219802641,3.51441228,81.46,81.429,3.81374001]
[1772219802940,39.7241371,81.461,81.429,3.81374001]
[1772219803341,3.60801751,81.479,81.445,3.81374001]
[1772219803941,3.51441228,81.47,81.445,3.81374001]
[1772219804136,3.51441228,81.46,81.434,3.81374001]
[1772219804737,3.51441228,81.45,81.423,3.81374001]
[1772219804938,3.60801751,81.459,81.423,3.81374001]
[1772219805343,3.51441228,81.46,81.423,3.81374001]
[1772219805943,3.51441228,81.46,81.425,3.81374001]
[1772219807049,3.51441228,81.46,81.427,11.0535]
[1772219807249,3.50844283,81.46,81.427,11.0535]
[1772219807449,3.50844283,81.46,81.427,14.86724001]
[1772219809249,3.60801751,81.47,81.428,3.81374001]
[1772219809440,7.11646034,81.47,81.428,3.81374001]
[1772219810352,3.50844283,81.47,81.438,3.81374001]
[1772219810746,3.50844283,81.48,81.438,3.81374001]
[1772219812042,3.50844283,81.48,81.439,14.86564001]
[1772219812443,7.11646034,81.48,81.439,14.86564001]
[1772219812649,3.60801751,81.459,81.417,3.81374001]
[1772219813653,3.50844283,81.46,81.43,11.0531]
[1772219813851,3.50844283,81.46,81.428,3.81374001]
[1772219814054,7.11646034,81.47,81.428,3.81374001]
[1772219814852,7.11646034,81.47,81.437,3.81374001]
[1772219815255,3.60801751,81.469,81.411,3.81374001]
[1772219815651,3.50844283,81.46,81.426,11.0536]
[1772219816550,3.50844283,81.46,81.427,3.81374001]
[1772219817152,3.60801751,81.459,81.427,3.81374001]
[1772219817349,3.60801751,81.459,81.418,11.0547]
[1772219817746,3.50844283,81.45,81.418,11.0547]
[1772219818352,3.60801751,81.457,81.422,11.0542]
[1772219821945,3.60801751,81.456,81.423,3.81374001]
[1772219822150,3.50844283,81.45,81.415,11.0551]
[1772219822651,3.50844283,81.45,81.415,14.86884001]
[1772219822850,3.50844283,81.45,81.418,11.0548]
[1772219825857,3.50844283,81.45,81.418,14.86854001]
[1772219826057,3.60801751,81.479,81.423,3.81374001]
[1772219826355,3.50844283,81.48,81.431,3.81374001]
[1772219827967,3.50844283,81.48,81.42,3.50844283]
[1772219827968,3.50844283,81.48,81.447,11.0508]
[1772219829461,11.0453,81.488,81.448,3.81374001]
[1772219829662,3.60801751,81.487,81.448,3.81374001]
[1772219830262,3.50844283,81.48,81.45,11.0504]
[1772219830653,3.50844283,81.5,81.457,3.7495761]
[1772219830863,3.89074075,81.513,81.457,3.7495761]
[1772219830864,3.50844283,81.51,81.457,3.7495761]
[1772219831059,342.61737296,81.512,81.461,3.7495761]
[1772219831262,3.50844283,81.52,81.485,3.7495761]
[1772219832365,3.50844283,81.52,81.428,171.9421]
[1772219832366,3.89074075,81.538,81.488,3.7495761]
[1772219832763,3.50844283,81.55,81.491,3.7495761]
[1772219833158,3.50844283,81.55,81.506,14.7922761]
[1772219833358,3.50844283,81.54,81.506,14.7922761]
[1772219833555,3.50844283,81.54,81.506,3.7495761]
[1772219833758,7.39918358,81.54,81.494,3.7495761]
[1772219833958,3.50844283,81.53,81.494,3.7495761]
[1772219834664,3.89074075,81.539,81.494,3.7495761]
[1772219834862,3.89074075,81.539,81.497,11.044]
[1772219835162,3.50844283,81.55,81.498,3.7495761]
[1772219835366,7.39918358,81.55,81.498,3.7495761]
[1772219835664,3.89074075,81.55,81.498,3.7495761]
[1772219835865,7.39918358,81.55,81.511,3.7495761]
[1772219836165,3.89074075,81.55,81.511,3.7495761]
[1772219836358,7.39918358,81.55,81.511,3.7495761]
[1772219836961,7.39918358,81.55,81.514,11.0418]
[1772219837765,7.39918358,81.55,81.511,3.7495761]
[1772219838464,3.89074075,81.549,81.511,3.7495761]
[1772219839265,3.89074075,81.539,81.498,3.7495761]
[1772219839463,3.89074075,81.539,81.442,22.103]
[1772219839464,3.50844283,81.53,81.471,3.7495761]
[1772219839665,3.89074075,81.529,81.482,3.7495761]
[1772219839866,3.50844283,81.52,81.482,3.7495761]
[1772219840161,3.89074075,81.529,81.482,3.7495761]
[1772219840368,3.89074075,81.529,81.491,11.0448]
[1772219841159,3.89074075,81.529,81.482,14.7956761]
[1772219841368,3.89074075,81.529,81.483,3.7495761]
[1772219842764,3.50844283,81.52,81.483,3.7495761]
[1772219842973,3.50844283,81.52,81.473,11.0472]
[1772219842974,3.89074075,81.519,81.473,11.0472]
[1772219843668,3.89074075,81.519,81.473,14.7967761]
[1772219843969,14.93204075,81.518,81.473,14.7967761]
[1772219844366,3.89074075,81.517,81.473,14.7967761]
[1772219844670,3.89074075,81.517,81.477,14.7963761]
[1772219844866,3.50844283,81.52,81.478,3.7495761]
[1772219845864,3.50844283,81.52,81.479,11.0465]
[1772219846065,3.50844283,81.52,81.48,3.7495761]
[1772219846463,3.50844283,81.52,81.482,14.7955761]
[1772219846772,3.89074075,81.529,81.483,3.7495761]
[1772219847071,36.88,81.571,81.483,3.7495761]
[1772219847072,3.89074075,81.539,81.483,3.7495761]
[1772219847865,3.89074075,81.539,81.499,11.0438]
[1772219850166,3.89074075,81.539,81.499,14.7933761]
[1772219850968,7.39918358,81.55,81.503,3.7495761]
[1772219851771,3.50844283,81.54,81.491,3.7495761]
[1772219851978,3.50844283,81.53,81.491,3.7495761]
[1772219852177,36.88,81.582,81.491,3.7495761]
[1772219852178,3.50844283,81.54,81.491,3.7495761]
[1772219852370,3.89074075,81.539,81.504,11.043]
[1772219853975,3.50844283,81.54,81.494,3.7495761]
[1772219853976,3.89074075,81.538,81.496,11.0441]
[1772219854277,3.50844283,81.53,81.496,11.0441]
[1772219854578,3.50844283,81.52,81.494,3.7495761]
[1772219856067,7.39918358,81.53,81.494,3.7495761]
[1772219856580,3.89074075,81.529,81.494,3.7495761]
[1772219858071,3.89074075,81.529,81.46,22.0981]
[1772219858072,3.50844283,81.53,81.495,3.7495761]
[1772219858879,14.92924075,81.539,81.499,11.0437]
[1772219859182,3.50844283,81.54,81.5,3.7495761]
[1772219859580,3.89074075,81.549,81.508,3.61568289]
[1772219860880,3.89074075,81.549,81.514,11.0418]
[1772219861081,3.50844283,81.54,81.514,11.0418]
[1772219863382,3.50844283,81.54,81.508,14.65828289]
[1772219863784,3.50844283,81.52,81.484,3.98921254]
[1772219863981,3.50844283,81.52,81.488,11.0453]
[1772219864176,3.50844283,81.52,81.484,3.98921254]
[1772219864583,5.51995285,81.549,81.472,3.98921254]
[1772219864584,3.50844283,81.51,81.472,3.98921254]
[1772219865893,3.50844283,81.51,81.479,11.0465]
[1772219866092,3.50844283,81.51,81.472,3.98921254]
[1772219867096,3.50844283,81.51,81.478,11.0466]
[1772219867296,3.50438806,81.51,81.478,11.0466]
[1772219868500,3.50438806,81.51,81.483,11.0459]
[1772219868999,3.50438806,81.51,81.479,3.98921254]
[1772219871695,3.50438806,81.51,81.481,11.0462]
[1772219871901,3.50438806,81.5,81.467,3.98921254]
[1772219872905,3.50438806,81.5,81.472,11.0474]
[1772219875305,3.50438806,81.5,81.467,3.98921254]
[1772219875505,3.50438806,81.49,81.464,11.0485]
[1772219875702,3.50438806,81.48,81.455,3.98921254]
[1772219876895,3.50438806,81.48,81.457,11.0494]
[1772219877105,3.50438806,81.49,81.457,11.0494]
[1772219877299,3.50438806,81.48,81.455,3.98921254]
[1772219879406,3.90196314,81.502,81.455,3.98921254]
[1772219879606,3.50438806,81.5,81.475,11.047]
[1772219880607,3.50438806,81.51,81.481,11.0462]
[1772219881299,3.50438806,81.5,81.451,3.98921254]
[1772219881603,3.50438806,81.49,81.451,3.98921254]
[1772219882003,3.90196314,81.499,81.451,3.98921254]
[1772219882811,3.50438806,81.5,81.474,11.0471]
[1772219883010,3.50438806,81.51,81.464,3.98921254]
[1772219883705,3.50438806,81.5,81.464,3.98921254]
[1772219883906,3.50438806,81.5,81.48,11.0463]
[1772219885808,3.50438806,81.5,81.474,11.0472]
[1772219886407,3.90196314,81.489,81.453,11.05]
[1772219886608,3.50438806,81.48,81.453,11.05]
[1772219888705,3.50438806,81.49,81.454,3.98921254]
[1772219888910,171.6006,81.591,81.454,3.98921254]
[1772219888911,3.50438806,81.5,81.454,3.98921254]
[1772219889103,3.90196314,81.509,81.454,3.98921254]
[1772219889810,3.90196314,81.509,81.471,3.98921254]
[1772219890208,3.50438806,81.51,81.471,3.98921254]
[1772219890608,3.50438806,81.51,81.476,11.0469]
[1772219892013,3.50438806,81.51,81.471,3.98921254]
[1772219892211,3.50438806,81.5,81.451,3.80593697]
[1772219892711,3.50438806,81.48,81.451,3.80593697]
[1772219893814,3.50438806,81.48,81.452,11.0501]
[1772219894616,3.50438806,81.48,81.451,3.80593697]
[1772219894617,3.50438806,81.48,81.458,11.0492]
[1772219896712,3.88028898,81.489,81.458,11.0492]
[1772219897416,3.88028898,81.489,81.464,11.0485]
[1772219897713,3.50438806,81.5,81.451,3.80593697]
[1772219898113,3.50438806,81.5,81.471,11.0476]
[1772219898314,3.50438806,81.5,81.464,3.80593697]
[1772219898715,3.88028898,81.499,81.45,3.80593697]
[1772219898916,3.50438806,81.49,81.45,3.80593697]
[1772219899817,3.50438806,81.48,81.455,11.0497]
[1772219900517,3.50438806,81.48,81.45,3.80593697]
[1772219901518,3.50438806,81.48,81.452,11.0501]
[1772219902117,3.88028898,81.489,81.452,11.0501]
[1772219902313,3.50438806,81.48,81.452,11.0501]
[1772219903516,3.88028898,81.489,81.452,11.0501]
[1772219904018,3.88028898,81.489,81.417,22.1097]
[1772219904019,3.50438806,81.46,81.429,3.80593697]
[1772219904223,7.38467704,81.46,81.416,3.80593697]
[1772219905116,3.88028898,81.459,81.418,11.0547]
[1772219905320,3.50438806,81.45,81.418,11.0547]
[1772219906120,3.88028898,81.449,81.404,3.80593697]
[1772219906320,3.50438806,81.44,81.404,3.80593697]
[1772219906526,3.88028898,81.449,81.404,3.80593697]
[1772219909026,3.88028898,81.449,81.406,11.0564]
[1772219909226,3.88028898,81.449,81.407,3.80593697]
[1772219910927,3.88028898,81.449,81.411,11.0557]
[1772219912327,3.88028898,81.439,81.39,3.80593697]
[1772219912929,7.38467704,81.43,81.393,11.0581]
[1772219915527,3.50438806,81.42,81.39,3.80593697]
[1772219915719,3.88028898,81.428,81.39,3.80593697]
[1772219917029,3.88028898,81.439,81.39,3.80593697]
[1772219917622,3.50438806,81.43,81.39,3.80593697]
[1772219918130,3.50438806,81.43,81.405,11.0565]
[1772219918731,3.50438806,81.45,81.41,11.0558]
[1772219918932,3.88028898,81.449,81.41,11.0558]
[1772219920830,3.50438806,81.44,81.41,11.0558]
[1772219921021,3.89633624,81.439,81.41,11.0558]
[1772219922033,3.89633624,81.439,81.402,11.0569]
[1772219922428,3.89633624,81.439,81.365,516.88833131]
[1772219922429,3.89633624,81.429,81.383,3.90678458]
[1772219922628,3.89633624,81.429,81.394,11.058]
[1772219922829,3.89633624,81.429,81.383,3.90678458]
[1772219923933,3.89633624,81.429,81.4,11.0571]
[1772219924235,3.89633624,81.439,81.383,3.90678458]
[1772219924733,3.89633624,81.439,81.405,11.0565]
[1772219926933,3.89633624,81.439,81.398,11.0574]
[1772219927229,8.83757517,81.469,81.382,3.90678458]
[1772219927230,3.89633624,81.429,81.382,3.90678458]
[1772219927633,3.89633624,81.429,81.403,11.0568]
[1772219928232,3.89633624,81.429,81.373,3.90678458]
[1772219928425,3.89633624,81.419,81.373,3.90678458]
[1772219928624,3.89633624,81.419,81.372,58.19794839]
[1772219928625,3.89633624,81.409,81.372,58.19794839]
[1772219928934,3.89633624,81.399,81.361,3.90678458]
[1772219929334,3.89633624,81.397,81.355,11.0633]
[1772219930327,3.89633624,81.397,81.361,11.0625]
[1772219931937,3.51458053,81.39,81.354,11.0634]
[1772219932331,3.51458053,81.39,81.349,3.90678458]
[1772219932634,3.89633624,81.396,81.354,11.0635]
[1772219934133,3.51458053,81.39,81.354,11.0635]
[1772219934934,11.0584,81.392,81.354,11.0635]
[1772219935132,3.51458053,81.39,81.354,11.0635]
[1772219935437,3.89633624,81.396,81.322,56.69105344]
[1772219935438,3.89633624,81.396,81.357,3.90678458]
[1772219935638,3.51458053,81.4,81.357,3.90678458]
[1772219935838,3.89633624,81.408,81.368,11.0615]
[1772219936234,7.41091677,81.4,81.361,3.90678458]
[1772219936429,3.89633624,81.399,81.361,3.90678458]
[1772219936737,3.51458053,81.39,81.361,3.90678458]
[1772219937239,3.89633624,81.399,81.361,3.90678458]
[1772219937541,3.51458053,81.4,81.361,3.90678458]
[1772219937935,3.51458053,81.4,81.363,3.90678458]
[1772219938440,3.89633624,81.399,81.363,3.90678458]
[1772219940443,3.51458053,81.39,81.363,3.90678458]
[1772219940945,11.0563,81.407,81.365,3.90678458]
[1772219941344,14.95263624,81.407,81.365,3.90678458]
[1772219941544,3.89633624,81.406,81.365,3.90678458]
[1772219941747,3.51458053,81.39,81.354,14.97018458]
[1772219942448,3.51458053,81.38,81.347,11.0644]
[1772219942640,3.51458053,81.36,81.326,3.90678458]
[1772219943241,3.51458053,81.36,81.327,11.0672]
[1772219943641,3.51458053,81.37,81.326,3.90678458]
[1772219943838,3.51458053,81.38,81.338,3.90678458]
[1772219944044,3.89633624,81.381,81.338,3.90678458]
[1772219944944,3.89633624,81.381,81.352,11.0637]
[1772219945147,3.51458053,81.39,81.338,3.90678458]
[1772219945346,3.51458053,81.39,81.322,56.69105344]
[1772219945347,3.51458053,81.4,81.341,3.90678458]
[1772219946040,3.51458053,81.37,81.324,3.90678458]
[1772219946441,3.51458053,81.36,81.324,3.90678458]
[1772219947346,3.51458053,81.37,81.324,3.90678458]
[1772219948148,3.51458053,81.37,81.345,11.0647]
[1772219948546,3.89633624,81.416,81.336,3.90678458]
[1772219948745,3.51458053,81.39,81.357,11.063]
[1772219948948,3.51458053,81.38,81.357,11.063]
[1772219949148,3.89633624,81.389,81.357,11.063]
[1772219949449,3.89633624,81.409,81.366,11.0618]
[1772219950450,3.61921606,81.401,81.359,11.0628]
[1772219950753,3.61921606,81.401,81.348,3.90678458]
[1772219951643,3.61921606,81.401,81.365,11.0619]
[1772219951644,3.61921606,81.4,81.365,11.0619]
[1772219952044,3.61921606,81.4,81.348,3.90678458]
[1772219952545,3.61921606,81.4,81.36,3.82067273]
[1772219953954,3.61921606,81.4,81.37,11.0612]
[1772219954748,3.61921606,81.4,81.376,11.0604]
[1772219954951,3.61921606,81.427,81.376,11.0604]
[1772219955347,3.61921606,81.411,81.369,11.0613]
[1772219957053,11.0567,81.405,81.369,11.0613]
[1772219957461,3.61921606,81.404,81.369,11.0613]
[1772219960257,3.61921606,81.404,81.339,3.82067273]
[1772219960853,3.61921606,81.384,81.339,3.82067273]
[1772219961657,3.61921606,81.384,81.345,11.0646]
[1772219964061,3.61921606,81.384,81.351,11.0638]
[1772219964355,3.61921606,81.397,81.351,3.82067273]
[1772219964751,3.61921606,81.397,81.322,56.69105344]
[1772219964752,3.61921606,81.397,81.34,3.82067273]
[1772219966659,3.61921606,81.397,81.361,11.0624]
[1772219966962,3.61921606,81.397,81.351,3.82067273]
[1772219967354,3.61921606,81.394,81.351,3.82067273]
[1772219967963,3.61921606,81.394,81.353,11.0635]
[1772219968363,3.61921606,81.391,81.353,11.0635]
[1772219969252,3.51530121,81.39,81.353,11.0635]
[1772219970364,7.13451727,81.39,81.353,11.0635]
[1772219971464,3.51530121,81.38,81.342,11.065]
[1772219971857,3.51530121,81.38,81.342,14.88567273]
[1772219972158,3.51530121,81.38,81.345,11.0646]
[1772219974858,3.51530121,81.38,81.349,11.0641]
[1772219975359,3.61921606,81.384,81.349,11.0641]
[1772219975768,3.61921606,81.384,81.355,11.0633]
[1772219978764,3.51530121,81.39,81.359,11.0627]
[1772219978964,3.51530121,81.39,81.359,14.88337273]
[1772219980164,3.81082051,81.389,81.35,11.0639]
[1772219980768,3.81082051,81.389,81.348,3.81692722]
[1772219981862,3.81082051,81.389,81.362,11.0623]
[1772219982369,3.81082051,81.389,81.348,3.81692722]
[1772219982669,3.81082051,81.389,81.356,11.0631]
[1772219983974,3.81082051,81.389,81.362,11.0623]
[1772219984764,3.51530121,81.39,81.364,14.87892722]
[1772219985664,3.81082051,81.389,81.353,3.81692722]
[1772219986673,3.81082051,81.389,81.354,11.0634]
[1772219987875,3.81082051,81.389,81.33,3.51530121]
[1772219987876,3.81082051,81.386,81.346,11.0645]
[1772219988373,3.81082051,81.386,81.347,3.81692722]
[1772219988768,3.51530121,81.38,81.347,3.81692722]
[1772219989681,3.81082051,81.378,81.339,11.0654]
[1772219989882,3.81082051,81.378,81.34,3.81692722]
[1772219990983,11.0604,81.377,81.342,3.81692722]
[1772219992984,3.81082051,81.378,81.343,14.88182722]
[1772219993184,3.81082051,81.378,81.344,3.81692722]
[1772219994083,3.81082051,81.378,81.347,11.0644]
[1772219994479,3.51605281,81.38,81.348,3.81692722]
[1772219995982,3.51605281,81.38,81.349,11.0641]
[1772219998279,3.51605281,81.38,81.35,3.81692722]
[1772220001890,7.32687332,81.38,81.35,3.81692722]
[1772220002384,18.38957332,81.36,81.327,3.81692722]
[1772220002887,14.87392051,81.357,81.322,56.69105344]
[1772220003088,3.51605281,81.35,81.322,56.69105344]
[1772220004087,3.51605281,81.36,81.323,3.81692722]
[1772220004884,36.88,81.4,81.322,56.69105344]
[1772220004885,3.51605281,81.37,81.33,3.81692722]
[1772220005991,3.51605281,81.37,81.339,11.0655]
[1772220006889,12.34250951,81.37,81.339,11.0655]
[1772220007086,3.51605281,81.37,81.339,11.0655]
[1772220012595,3.51605281,81.37,81.333,3.91454899]
[1772220012787,3.51605281,81.37,81.323,3.91454899]
[1772220013182,3.69966452,81.377,81.338,3.91454899]
[1772220015086,3.69966452,81.377,81.342,3.91454899]
[1772220015388,3.51605281,81.38,81.342,3.91454899]
[1772220015694,3.51605281,81.39,81.349,3.91454899]
[1772220015994,3.69966452,81.398,81.349,3.91454899]
[1772220016386,3.51605281,81.4,81.34,3.51605281]
[1772220016387,3.51605281,81.4,81.356,3.91454899]
[1772220016585,3.69966452,81.389,81.356,3.91454899]
[1772220016794,3.69966452,81.389,81.331,3.91454899]
[1772220017992,3.69966452,81.385,81.343,3.91454899]
[1772220018891,11.0594,81.384,81.345,3.91454899]
[1772220020492,3.69966452,81.403,81.351,3.91454899]
[1772220020792,8.8264567,81.402,81.351,3.91454899]
[1772220020991,3.69966452,81.403,81.365,3.91454899]
[1772220022796,3.69966452,81.403,81.374,11.0607]
[1772220023090,3.69966452,81.403,81.365,3.91454899]
[1772220023288,3.69966452,81.403,81.367,14.97624899]
[1772220023483,3.69966452,81.403,81.368,3.91454899]
[1772220024695,39.63714141,81.429,81.381,3.91454899]
[1772220025295,3.69966452,81.428,81.389,3.91454899]
[1772220025695,3.69966452,81.427,81.389,3.91454899]
[1772220026191,3.69966452,81.427,81.336,22.86040113]
[1772220026192,3.69966452,81.419,81.371,3.91454899]
[1772220026898,11.055,81.417,81.373,3.91454899]
[1772220027292,3.51605281,81.41,81.373,3.91454899]
[1772220027996,3.69966452,81.416,81.373,3.91454899]
[1772220028897,3.69966452,81.416,81.375,3.91454899]
[1772220029095,3.69966452,81.428,81.375,3.91454899]
[1772220030090,3.69966452,81.428,81.387,3.91454899]
[1772220030495,39.63714141,81.429,81.39,3.91454899]
[1772220031598,39.63714141,81.429,81.398,3.91454899]
[1772220031993,11.0514,81.443,81.402,3.91454899]
[1772220032393,3.69966452,81.453,81.402,3.91454899]
[1772220032797,3.69966452,81.453,81.406,3.91454899]
[1772220032997,3.69966452,81.453,81.365,22.124]
[1772220032998,3.69966452,81.469,81.411,3.91454899]
[1772220033392,11.0481,81.467,81.424,3.91454899]
[1772220033592,3.69966452,81.466,81.424,3.91454899]
[1772220034199,3.51605281,81.46,81.416,11.055]
[1772220034399,3.69966452,81.459,81.416,11.055]
[1772220034595,3.69966452,81.449,81.413,3.91454899]
[1772220035896,3.69966452,81.449,81.415,11.0551]
[1772220040197,3.69966452,81.449,81.413,3.91454899]
[1772220044206,3.51605281,81.45,81.414,11.0553]
[1772220044404,3.51605281,81.47,81.415,3.94810719]
[1772220044600,3.86036623,81.47,81.421,3.94810719]
[1772220045499,3.86036623,81.47,81.432,3.94810719]
[1772220046006,7.37641904,81.47,81.432,3.94810719]
[1772220046403,7.37641904,81.47,81.434,11.0526]
[1772220046608,3.86036623,81.47,81.435,3.94810719]
[1772220047504,39.26022624,81.471,81.437,3.94810719]
[1772220049007,39.26022624,81.471,81.438,11.052]
[1772220053011,3.51605281,81.47,81.437,3.94810719]
[1772220053513,3.86036623,81.457,81.417,11.0549]
[1772220053706,3.50773104,81.45,81.412,3.94810719]
[1772220054623,7.36809727,81.45,81.412,3.94810719]
[1772220054809,39.26022624,81.471,81.387,524.47435842]
[1772220054810,3.50773104,81.44,81.391,3.94810719]
[1772220055409,7.36809727,81.44,81.402,11.057]
[1772220055813,3.86036623,81.439,81.391,3.94810719]
[1772220056908,3.86036623,81.438,81.395,3.94810719]
[1772220058411,3.86036623,81.438,81.403,11.0568]
[1772220060716,3.86036623,81.438,81.395,3.94810719]
[1772220061019,3.86036623,81.429,81.396,3.94810719]
[1772220061213,3.86036623,81.429,81.387,524.47435842]
[1772220061214,3.50773104,81.42,81.387,524.47435842]
[1772220061914,3.50773104,81.42,81.388,11.0588]
[1772220062117,3.86036623,81.429,81.388,3.94810719]
[1772220063116,3.86036623,81.429,81.394,11.058]
[1772220063307,3.86036623,81.429,81.388,3.94810719]
[1772220063510,3.86036623,81.429,81.393,11.0581]
[1772220064812,3.86036623,81.429,81.388,3.94810719]
[1772220066022,3.86036623,81.429,81.389,11.0587]
[1772220066615,3.86036623,81.428,81.389,11.0587]
[1772220069627,3.50773104,81.42,81.389,11.0587]
[1772220069824,3.86036623,81.428,81.395,11.0578]
[1772220070121,7.36773982,81.45,81.396,3.94810719]
[1772220070519,7.36773982,81.46,81.406,3.89525931]
[1772220070720,8.79501394,81.47,81.387,524.47435842]
[1772220070721,3.86000878,81.469,81.421,3.89525931]
[1772220071128,3.86000878,81.469,81.387,524.47435842]
[1772220071129,3.86000878,81.449,81.401,3.89525931]
[1772220071323,3.86000878,81.439,81.401,3.89525931]
[1772220072728,3.50773104,81.43,81.401,3.89525931]
[1772220073618,3.86000878,81.439,81.401,3.89525931]
[1772220075725,3.50773104,81.43,81.401,3.89525931]
[1772220076531,3.50773104,81.43,81.387,524.47435842]
[1772220076532,3.86000878,81.429,81.39,3.89525931]
[1772220077236,3.86000878,81.448,81.392,3.89525931]
[1772220077927,3.86000878,81.439,81.402,3.89525931]
[1772220079127,7.36773982,81.45,81.402,3.89525931]
[1772220079428,3.86000878,81.449,81.402,3.89525931]
[1772220080133,3.86000878,81.449,81.404,3.89525931]
[1772220080934,3.86000878,81.447,81.404,3.89525931]
[1772220081734,3.86000878,81.447,81.396,11.0578]
[1772220081735,3.86000878,81.439,81.396,11.0578]
[1772220081935,3.86000878,81.439,81.396,14.95305931]
[1772220082436,3.86000878,81.439,81.397,3.89525931]
[1772220084532,3.86000878,81.449,81.392,3.89525931]
[1772220084730,3.86000878,81.439,81.392,3.89525931]
[1772220085236,3.86000878,81.429,81.388,3.89525931]
[1772220087926,3.86000878,81.429,81.394,11.0579]
[1772220089826,3.86000878,81.429,81.4,11.0571]
[1772220090027,3.50773104,81.44,81.401,3.89525931]
[1772220090527,3.86000878,81.459,81.406,3.89525931]
[1772220091541,11.0502,81.453,81.415,3.89525931]
[1772220093334,14.90930878,81.459,81.418,3.89525931]
[1772220094938,14.90930878,81.459,81.419,11.0545]
[1772220096244,3.86000878,81.458,81.419,11.0545]
[1772220097845,3.86000878,81.454,81.418,3.89525931]
[1772220098053,3.50773104,81.45,81.418,3.89525931]
[1772220100140,3.86000878,81.454,81.418,3.89525931]
[1772220105452,11.0502,81.452,81.418,3.89525931]
[1772220107851,3.86000878,81.454,81.42,11.0545]
[1772220108153,3.86000878,81.454,81.42,14.9912703]
[1772220110549,11.0492,81.46,81.421,3.9367703]
[1772220110750,3.61058435,81.466,81.431,3.9367703]
[1772220110955,39.26022624,81.471,81.431,3.9367703]
[1772220112055,39.26022624,81.471,81.433,3.9367703]
[1772220113066,39.26022624,81.471,81.435,3.9367703]
[1772220113751,3.61058435,81.469,81.435,3.9367703]
[1772220114455,3.61058435,81.469,81.436,14.9890703]
[1772220119762,3.61058435,81.469,81.439,11.0518]
[1772220119954,3.61058435,81.469,81.439,14.9885703]
[1772220121755,3.61058435,81.469,81.433,11.0527]
[1772220122660,3.61058435,81.467,81.428,3.9367703]
[1772220123862,3.61058435,81.467,81.429,11.0532]
[1772220124464,3.61058435,81.467,81.429,14.9899703]
[1772220124661,3.61058435,81.465,81.429,14.9899703]
[1772220125365,3.61058435,81.459,81.423,11.054]
[1772220125956,3.61058435,81.449,81.419,3.9367703]
[1772220127064,3.50750623,81.46,81.419,3.9367703]
[1772220127559,7.11809058,81.47,81.419,3.9367703]
[1772220127759,3.61058435,81.469,81.419,3.9367703]
[1772220128863,3.61058435,81.469,81.433,11.0527]
[1772220131164,3.50750623,81.46,81.433,11.0527]
[1772220131966,7.39047294,81.45,81.427,11.0535]
[1772220132263,7.39047294,81.45,81.415,3.82516774]
[1772220132569,7.39047294,81.45,81.416,11.055]
[1772220133068,7.39047294,81.45,81.415,3.82516774]
[1772220133865,7.39047294,81.45,81.421,11.0543]
[1772220135971,11.0498,81.456,81.423,11.0541]
[1772220136164,14.93276671,81.456,81.423,11.0541]
[1772220136364,3.88296671,81.455,81.423,11.0541]
[1772220137366,8.83267922,81.469,81.429,3.82516774]